bitfinex/quotes_BTCUSD_20260310
["timestamp","ask_amount","ask_price","bid_price","bid_amount"]
[1773186597581,0.07150722,69923.0,69912.0,0.07151848]
[1773186598520,0.00144,69922.0,69912.0,0.07151848]
[1773186600159,0.07294832,69922.0,69912.0,0.07151848]
[1773186600598,0.07183583,69927.0,69913.0,0.09913028]
[1773186600773,0.00144,69923.0,69913.0,0.09913028]
[1773186601280,0.09697233,69923.0,69912.0,0.07151848]
[1773186602811,0.00144,69923.0,69912.0,0.07151848]
[1773186603085,0.00144,69923.0,69913.0,0.09913028]
[1773186604885,0.00144,69923.0,69914.0,0.07151643]
[1773186605389,0.00166001,69923.0,69914.0,0.07151643]
[1773186606374,0.00033189,69927.0,69915.0,0.09913028]
[1773186606620,0.00033189,69927.0,69918.0,0.09913028]
[1773186606759,0.00033189,69927.0,69917.0,0.05458083]
[1773186606962,0.00033189,69927.0,69918.0,0.07151234]
[1773186607830,0.00144,69933.0,69919.0,0.09913028]
[1773186608028,8.537e-05,69933.0,69924.0,0.09913028]
[1773186609059,8.537e-05,69933.0,69925.0,0.07150518]
[1773186609266,8.537e-05,69933.0,69926.0,0.09913028]
[1773186610964,8.537e-05,69933.0,69927.0,0.07150313]
[1773186611553,0.09573213,69940.0,69928.0,0.09913028]
[1773186611554,0.0001998,69940.0,69928.0,0.09913028]
[1773186611753,0.00057309,69940.0,69930.0,0.05458083]
[1773186612068,0.00057309,69940.0,69931.0,0.09913028]
[1773186613054,0.00057309,69940.0,69933.0,0.09913028]
[1773186614290,1e-08,69940.0,69933.0,0.09913028]
[1773186614493,6.4843848,69942.0,69933.0,0.09913028]
[1773186614494,5.00937715,69942.0,69933.0,0.09913028]
[1773186614691,4.79910637,69942.0,69933.0,0.09950357]
[1773186614895,4.04174228,69942.0,69933.0,0.09950357]
[1773186615090,3.60261522,69942.0,69935.0,0.09913028]
[1773186615338,3.59829522,69942.0,69937.0,0.09913028]
[1773186616221,3.56094101,69942.0,69937.0,0.09913028]
[1773186616437,3.51091483,69942.0,69937.0,0.09913028]
[1773186616638,3.4673576,69942.0,69937.0,0.10013028]
[1773186616905,2.92599585,69942.0,69937.0,0.10013028]
[1773186617038,2.92599585,69942.0,69938.0,0.07149189]
[1773186617266,2.92599585,69942.0,69939.0,0.09913028]
[1773186618091,2.89480235,69942.0,69939.0,0.09913028]
[1773186618410,2.60949916,69942.0,69939.0,0.09913028]
[1773186619091,2.58078815,69942.0,69940.0,0.07148984]
[1773186619296,2.58078815,69942.0,69941.0,0.09913028]
[1773186619465,2.55341801,69942.0,69941.0,0.09913028]
[1773186619667,2.49444415,69942.0,69941.0,0.09913028]
[1773186619911,2.46655352,69942.0,69941.0,0.09913028]
[1773186620159,2.3969312,69942.0,69941.0,0.09913028]
[1773186620361,2.36688655,69942.0,69941.0,0.10013028]
[1773186620657,2.33418724,69942.0,69941.0,0.10113028]
[1773186620817,2.26441244,69942.0,69941.0,0.10113028]
[1773186621007,2.22102668,69942.0,69941.0,0.10113028]
[1773186621223,2.15789517,69942.0,69941.0,0.1726191]
[1773186621430,2.12663556,69942.0,69941.0,0.07348882]
[1773186621608,2.10419623,69942.0,69941.0,0.18072604]
[1773186621815,2.05543247,69942.0,69941.0,0.07348882]
[1773186622155,1.96180496,69942.0,69941.0,0.18072604]
[1773186622365,1.65570394,69942.0,69941.0,0.18072604]
[1773186622651,1.44447749,69942.0,69941.0,0.18072604]
[1773186623041,1.37697225,69942.0,69941.0,0.17972604]
[1773186623240,1.35324494,69942.0,69941.0,0.17872604]
[1773186623444,1.33479588,69942.0,69941.0,0.07348882]
[1773186623624,1.26984001,69942.0,69941.0,0.07348882]
[1773186623846,1.25334377,69942.0,69941.0,0.07148882]
[1773186624052,1.22721364,69942.0,69941.0,0.18072604]
[1773186624278,1.15957908,69942.0,69941.0,0.18072604]
[1773186624475,1.13145918,69942.0,69941.0,0.07348882]
[1773186624695,1.10468707,69942.0,69941.0,0.18072604]
[1773186625036,0.85924436,69942.0,69941.0,0.07348882]
[1773186625216,0.77142477,69942.0,69941.0,0.18072604]
[1773186625721,0.74128706,69942.0,69941.0,0.07248882]
[1773186625922,0.69203264,69942.0,69941.0,0.07148882]
[1773186626080,0.64288103,69942.0,69941.0,0.17972604]
[1773186626301,0.62202436,69942.0,69941.0,0.17972604]
[1773186626581,0.54679508,69942.0,69941.0,0.17972604]
[1773186626808,0.51150797,69942.0,69941.0,0.17972604]
[1773186627196,0.40295195,69942.0,69941.0,0.07348882]
[1773186627394,0.40295195,69942.0,69941.0,0.18072604]
[1773186627395,0.38588706,69942.0,69941.0,0.18072604]
[1773186627604,0.3229297,69942.0,69941.0,0.07348882]
[1773186627821,0.31459393,69942.0,69941.0,0.18092604]
[1773186628184,0.00022001,69944.0,69941.0,0.07368882]
[1773186628317,0.00022001,69944.0,69942.0,0.10867722]
[1773186628729,0.00022001,69949.0,69942.0,0.10867722]
[1773186628952,0.49609791,69946.0,69942.0,0.10867722]
[1773186629168,0.00022001,69961.0,69942.0,0.10867722]
[1773186629359,0.00022001,69961.0,69946.0,0.05458083]
[1773186629360,0.14031255,69956.0,69946.0,0.05458083]
[1773186629711,0.14031255,69956.0,69943.0,0.07148678]
[1773186629712,0.14031255,69956.0,69947.0,0.00144]
[1773186629885,0.24893917,69956.0,69947.0,0.00144]
[1773186630474,0.14031255,69956.0,69947.0,0.10867722]
[1773186630798,0.14031255,69956.0,69947.0,0.00144]
[1773186631620,0.14031255,69956.0,69948.0,0.07148167]
[1773186634307,0.14031255,69956.0,69948.0,0.07248167]
[1773186634703,0.14031255,69956.0,69949.0,0.10723722]
[1773186634906,0.00022001,69961.0,69949.0,0.10723722]
[1773186636290,0.00022001,69961.0,69950.0,0.17871684]
[1773186636486,0.00022001,69961.0,69951.0,0.10723722]
[1773186636692,0.00022001,69961.0,69950.0,0.07147962]
[1773186636890,0.10884663,69961.0,69950.0,0.07147962]
[1773186637085,0.10862662,69959.0,69950.0,0.07147962]
[1773186637315,0.10862662,69959.0,69951.0,0.00144]
[1773186637711,0.07169038,69961.0,69949.0,0.07247993]
[1773186637915,0.07169038,69961.0,69950.0,0.00144]
[1773186637916,0.10862662,69957.0,69950.0,0.00144]
[1773186638084,0.10862662,69957.0,69951.0,0.00144]
[1773186638284,0.10862662,69957.0,69952.0,0.07291694]
[1773186638535,0.10862662,69957.0,69952.0,0.00144]
[1773186639010,0.10862662,69957.0,69953.0,0.00144]
[1773186641316,0.10862662,69957.0,69951.0,7e-07]
[1773186641518,0.10862662,69957.0,69953.0,0.00144]
[1773186641873,0.10862662,69957.0,69951.0,7e-07]
[1773186642094,0.10884663,69957.0,69953.0,0.00144]
[1773186642671,0.10884663,69957.0,69941.0,0.07168875]
[1773186642672,0.07169314,69957.0,69941.0,0.07168875]
[1773186642883,0.00022001,69957.0,69942.0,0.10867722]
[1773186643104,0.0716926,69957.0,69942.0,0.10867722]
[1773186643523,0.00022001,69957.0,69942.0,0.10867722]
[1773186643725,0.00122001,69957.0,69942.0,0.10867722]
[1773186643996,0.00022001,69957.0,69942.0,0.10867722]
[1773186644206,0.00022001,69957.0,69947.0,0.05458083]
[1773186644402,0.00022001,69957.0,69948.0,0.07292167]
[1773186644782,0.00022001,69957.0,69948.0,0.18015889]
[1773186645284,0.00022001,69957.0,69948.0,0.10867722]
[1773186645455,0.03134451,69956.0,69949.0,0.00144]
[1773186645654,0.03134451,69956.0,69950.0,0.00144]
[1773186646491,0.10281891,69956.0,69950.0,0.00144]
[1773186647056,0.10381891,69956.0,69950.0,0.00144]
[1773186648505,0.0724744,69956.0,69950.0,0.00144]
[1773186648812,0.001,69956.0,69950.0,0.00144]
[1773186648954,0.00022001,69957.0,69950.0,0.00144]
[1773186649157,0.00022001,69957.0,69950.0,0.0729187]
[1773186649158,0.001,69956.0,69950.0,0.0729187]
[1773186649404,0.001,69956.0,69951.0,0.11628851]
[1773186649968,0.00022001,69956.0,69951.0,0.11628851]
[1773186650459,0.00022001,69956.0,69952.0,0.07147758]
[1773186650816,0.00022001,69956.0,69953.0,0.11795304]
[1773186652291,0.00022001,69956.0,69950.0,0.00144]
[1773186652532,0.00022001,69956.0,69950.0,0.07291887]
[1773186653806,0.00022001,69962.0,69951.0,0.11795304]
[1773186654072,0.00062001,69970.0,69952.0,0.11795304]
[1773186654237,0.00062001,69970.0,69960.0,0.17244075]
[1773186654434,0.00062001,69970.0,69961.0,0.00144]
[1773186654435,0.07146021,69969.0,69961.0,0.00144]
[1773186654639,0.00062001,69970.0,69961.0,0.00144]
[1773186654857,0.07207922,69970.0,69961.0,0.00144]
[1773186655060,0.07207922,69970.0,69951.0,0.07147664]
[1773186655232,0.07207922,69970.0,69950.0,0.0724796]
[1773186655233,0.02913675,69969.0,69950.0,0.0724796]
[1773186655434,0.02924871,69969.0,69951.0,0.00144]
[1773186655900,0.02924871,69969.0,69952.0,0.001]
[1773186656105,0.02924871,69969.0,69951.0,0.00144]
[1773186656235,0.02924871,69969.0,69927.0,0.42613755]
[1773186656236,0.02924871,69969.0,69952.0,0.00144]
[1773186656440,0.02924871,69969.0,69943.0,0.07148582]
[1773186656844,0.07146123,69968.0,69944.0,0.00144]
[1773186657211,0.02857435,69967.0,69945.0,0.00144]
[1773186657351,0.02857435,69967.0,69947.0,0.0002]
[1773186659031,0.07146328,69966.0,69947.0,0.0002]
[1773186659231,0.02950656,69965.0,69947.0,0.0002]
[1773186659429,0.02950656,69965.0,69949.0,0.06]
[1773186660972,0.03050656,69965.0,69949.0,0.06]
[1773186662414,0.02719751,69963.0,69949.0,0.06]
[1773186663678,0.02819751,69963.0,69949.0,0.06]
[1773186663973,0.02719751,69963.0,69949.0,0.06]
[1773186664378,0.02719751,69963.0,69949.0,0.0602]
[1773186664582,0.0266225,69961.0,69949.0,0.0602]
[1773186665994,0.0276225,69961.0,69949.0,0.0602]
[1773186668204,0.07146941,69960.0,69949.0,0.0602]
[1773186668550,0.09695224,69960.0,69950.0,0.00144]
[1773186668697,0.07146941,69960.0,69950.0,0.00144]
[1773186669342,0.07246941,69960.0,69950.0,0.00144]
[1773186669542,0.07146941,69960.0,69950.0,0.00144]
[1773186669968,0.09767844,69960.0,69950.0,0.00144]
[1773186670207,0.09767844,69960.0,69944.0,0.0714852]
[1773186670208,0.02492707,69957.0,69940.0,0.0002]
[1773186670339,0.02492707,69950.0,69935.0,0.0006]
[1773186670776,0.02492707,69950.0,69936.0,0.00144]
[1773186671180,0.02492707,69950.0,69937.0,0.00144]
[1773186671410,0.02492707,69950.0,69929.0,0.1894533]
[1773186671411,0.02492707,69950.0,69928.0,0.00562]
[1773186671413,0.0247151,69949.0,69928.0,0.00562]
[1773186671615,0.0261551,69949.0,69929.0,0.00144]
[1773186672165,0.0247151,69938.0,69925.0,0.00023]
[1773186672368,0.0247151,69938.0,69927.0,0.00144]
[1773186673376,0.02475775,69938.0,69927.0,0.00144]
[1773186673583,0.02575775,69938.0,69927.0,0.00144]
[1773186674472,0.07149291,69937.0,69927.0,0.00144]
[1773186676424,0.07153556,69938.0,69927.0,0.00144]
[1773186676853,0.07153556,69938.0,69926.0,0.11795304]
[1773186677042,0.07153556,69938.0,69928.0,0.00144]
[1773186678810,0.07253556,69938.0,69928.0,0.00144]
[1773186680226,0.0177644,69937.0,69915.0,0.11187538]
[1773186680528,0.0177644,69937.0,69919.0,0.00144]
[1773186680714,0.0177644,69937.0,69920.0,0.0002]
[1773186680923,0.0177644,69935.0,69920.0,0.0002]
[1773186681831,0.0177644,69935.0,69920.0,0.0003706]
[1773186682943,0.07149598,69934.0,69920.0,0.0003706]
[1773186684119,0.07149598,69934.0,69915.0,0.11187538]
[1773186684120,0.0166287,69933.0,69915.0,0.11187538]
[1773186684357,0.0166287,69929.0,69918.0,0.00144]
[1773186685077,0.07150211,69928.0,69914.0,0.0002]
[1773186685280,0.07150211,69928.0,69918.0,0.00144]
[1773186685650,0.07150211,69928.0,69914.0,0.0002]
[1773186685651,0.07150211,69928.0,69917.0,0.00224]
[1773186686049,0.07150211,69928.0,69917.0,0.0008]
[1773186686256,0.07150211,69928.0,69917.0,0.00224]
[1773186686753,0.07150211,69928.0,69917.0,0.0008]
[1773186687158,0.07150211,69928.0,69917.0,0.00224]
[1773186687353,0.07150211,69928.0,69918.0,0.0002]
[1773186687831,0.07150211,69928.0,69918.0,0.00164]
[1773186688611,0.07150211,69928.0,69918.0,0.0002]
[1773186688945,0.07150211,69928.0,69917.0,0.00224]
[1773186689160,0.08200809,69928.0,69916.0,0.00144]
[1773186689364,0.08300809,69928.0,69916.0,0.00144]
[1773186690537,0.08200809,69928.0,69916.0,0.00144]
[1773186690966,0.08300809,69928.0,69916.0,0.00144]
[1773186691655,0.08200809,69928.0,69916.0,0.00144]
[1773186691925,0.08300809,69928.0,69916.0,0.00144]
[1773186692976,0.08300809,69928.0,69911.0,0.11207538]
[1773186693171,0.08300809,69928.0,69912.0,0.00144]
[1773186693383,0.08182296,69928.0,69913.0,0.00144]
[1773186693579,0.08282296,69928.0,69913.0,0.00144]
[1773186693843,0.08182296,69928.0,69913.0,0.11331538]
[1773186694470,0.08182296,69928.0,69913.0,0.00144]
[1773186694471,0.00904402,69927.0,69913.0,0.00144]
[1773186695217,0.07294211,69928.0,69914.0,0.11187538]
[1773186695636,0.001,69927.0,69916.0,0.11187538]
[1773186696838,0.07150211,69928.0,69916.0,0.11187538]
[1773186698933,0.00144,69933.0,69916.0,0.11187538]
[1773186699374,0.07918751,69935.0,69916.0,0.11187538]
[1773186699606,0.00144,69933.0,69916.0,0.11187538]
[1773186699820,0.07918751,69935.0,69916.0,0.11187538]
[1773186700013,0.00913256,69934.0,69916.0,0.11187538]
[1773186700220,0.05448771,69930.0,69916.0,0.11187538]
[1773186700610,0.00742112,69931.0,69916.0,0.11187538]
[1773186700808,0.07150007,69930.0,69916.0,0.11187538]
[1773186701995,0.07150007,69930.0,69916.0,0.11207538]
[1773186709643,0.00021813,69917.0,69916.0,0.11207538]
[1773186709822,0.07150862,69922.0,69916.0,0.11207538]
[1773186710722,0.07150862,69922.0,69916.0,0.11244867]
[1773186711734,0.07150746,69923.0,69916.0,0.11244867]
[1773186711735,0.07150109,69929.0,69916.0,0.11244867]
[1773186713872,0.07131925,69929.0,69916.0,0.11244867]
[1773186719722,0.07153926,69929.0,69916.0,0.11244867]
[1773186721354,0.07135743,69929.0,69916.0,0.11244867]
[1773186722022,0.06968189,69929.0,69916.0,0.11244867]
[1773186725045,0.00022001,69933.0,69920.0,0.10845434]
[1773186725216,0.06659338,69934.0,69922.0,0.10845434]
[1773186725452,0.05701477,69934.0,69922.0,0.10845434]
[1773186727027,0.07149499,69935.0,69923.0,0.07150722]
[1773186727229,0.07149499,69935.0,69924.0,0.10845434]
[1773186728313,0.00022001,69934.0,69924.0,0.10845434]
[1773186729664,0.071497,69933.0,69924.0,0.17995983]
[1773186730055,0.071497,69933.0,69925.0,0.10845434]
[1773186733611,0.071497,69933.0,69916.0,0.07208746]
[1773186733808,0.071497,69933.0,69918.0,0.10421979]
[1773186734390,0.071497,69933.0,69917.0,0.07295299]
[1773186734391,0.07171652,69934.0,69921.0,0.10421979]
[1773186735823,0.07171759,69933.0,69922.0,0.07150825]
[1773186736141,0.07171759,69933.0,69924.0,0.10421979]
[1773186736732,0.00022001,69933.0,69924.0,0.10421979]
[1773186738029,0.00022001,69933.0,69925.0,0.07150518]
[1773186738398,0.00022001,69933.0,69926.0,0.10421979]
[1773186739976,0.07171721,69933.0,69926.0,0.10421979]
[1773186742198,0.00022001,69933.0,69926.0,0.10421979]
[1773186742610,0.07171721,69933.0,69926.0,0.10421979]
[1773186742838,0.00042841,69944.0,69927.0,0.07150313]
[1773186743160,0.07191444,69944.0,69933.0,0.1016327]
[1773186743385,0.07148687,69943.0,69935.0,0.1016327]
[1773186743599,0.07191444,69944.0,69935.0,0.1016327]
[1773186746267,0.00042841,69944.0,69936.0,0.1016327]
[1773186747634,0.00022001,69948.0,69936.0,0.1016327]
[1773186748365,0.00022001,69948.0,69939.0,0.1016327]
[1773186748579,0.00037141,69952.0,69941.0,0.1016327]
[1773186748785,0.00037141,69952.0,69943.0,0.1016327]
[1773186750755,0.00037141,69952.0,69945.0,0.1016327]
[1773186750960,0.00037141,69952.0,69947.0,0.1016327]
[1773186755755,0.07184918,69952.0,69947.0,0.1016327]
[1773186755964,0.07224918,69952.0,69947.0,0.1016327]
[1773186757507,0.00077141,69952.0,69947.0,0.1016327]
[1773186757912,0.09938926,69951.0,69941.0,0.00144]
[1773186759826,0.07224912,69952.0,69941.0,0.00144]
[1773186760057,0.001,69951.0,69941.0,0.00144]
[1773186760258,0.07224912,69952.0,69941.0,0.00144]
[1773186760461,0.001,69951.0,69941.0,0.00144]
[1773186761838,0.07147962,69950.0,69941.0,0.00144]
[1773186763233,0.07247962,69950.0,69941.0,0.00144]
[1773186764086,0.07247962,69950.0,69941.0,0.00164]
[1773186765379,0.07247962,69950.0,69926.0,0.00144]
[1773186765380,0.09938926,69949.0,69926.0,0.00144]
[1773186765584,0.05455729,69940.0,69926.0,0.00037329]
[1773186765789,0.00144,69946.0,69930.0,0.05455729]
[1773186766006,0.07148473,69945.0,69930.0,0.15618999]
[1773186766198,0.09938926,69944.0,69930.0,0.1016327]
[1773186766350,0.09938926,69944.0,69931.0,0.00144]
[1773186766776,0.001,69940.0,69931.0,0.00144]
[1773186767229,0.09938926,69944.0,69931.0,0.00144]
[1773186767401,0.10038926,69944.0,69931.0,0.00144]
[1773186767583,0.09938926,69944.0,69931.0,0.00144]
[1773186768006,0.07149087,69939.0,69931.0,0.00144]
[1773186770084,0.07148678,69943.0,69931.0,0.00144]
[1773186770993,0.07148678,69943.0,69931.0,0.00164]
[1773186772361,0.07248678,69943.0,69931.0,0.00164]
[1773186778003,0.07248678,69943.0,69931.0,0.07313881]
[1773186778226,0.07248678,69943.0,69933.0,0.071497]
[1773186778227,0.001,69943.0,69933.0,0.071497]
[1773186778517,0.001,69943.0,69934.0,0.10347223]
[1773186778662,0.07248711,69943.0,69934.0,0.10347223]
[1773186778897,0.07248711,69943.0,69931.0,0.00164]
[1773186779493,0.07248711,69943.0,69931.0,0.10511223]
[1773186779704,0.07148711,69943.0,69931.0,0.10511223]
[1773186779907,0.07148711,69943.0,69927.0,0.0002]
[1773186779908,0.10106736,69942.0,69927.0,0.0002]
[1773186780121,0.07148882,69941.0,69928.0,0.00144]
[1773186780339,0.10088908,69940.0,69928.0,0.00144]
[1773186780761,0.07148882,69941.0,69928.0,0.00144]
[1773186781971,0.10073381,69940.0,69928.0,0.00144]
[1773186782162,0.10073381,69940.0,69929.0,0.00144]
[1773186782415,0.10055589,69938.0,69929.0,0.00144]
[1773186782584,0.10055589,69938.0,69928.0,0.00144]
[1773186783123,0.10055589,69938.0,69920.0,0.0002]
[1773186783306,0.10085503,69936.0,69923.0,0.00144]
[1773186784386,0.07149495,69935.0,69920.0,0.0002]
[1773186784566,0.1006853,69934.0,69923.0,0.00144]
[1773186785632,0.1006853,69934.0,69920.0,0.0002]
[1773186785633,0.1006853,69934.0,69917.0,0.0006]
[1773186785834,0.07149495,69935.0,69911.0,0.10367223]
[1773186785835,0.10050677,69929.0,69911.0,0.10367223]
[1773186786033,0.05453331,69930.0,69912.0,0.00144]
[1773186786034,0.10050677,69927.0,69912.0,0.00144]
[1773186786804,0.07150416,69926.0,69912.0,0.17643007]
[1773186787012,0.07150416,69926.0,69912.0,0.07295784]
[1773186787218,0.07150416,69926.0,69913.0,0.10347223]
[1773186790733,0.00144,69929.0,69913.0,0.10347223]
[1773186790937,0.00144,69929.0,69914.0,0.10491223]
[1773186791705,0.09954046,69931.0,69914.0,0.10491223]
[1773186791905,0.10088976,69930.0,69914.0,0.10491223]
[1773186792706,0.09927276,69928.0,69914.0,0.10491223]
[1773186795017,0.07150313,69927.0,69914.0,0.10491223]
[1773186795219,0.17042172,69927.0,69914.0,0.10491223]
[1773186797562,0.07150313,69927.0,69914.0,0.10491223]
[1773186799085,0.07150313,69929.0,69916.0,0.10347223]
[1773186809353,0.16781214,69929.0,69914.0,0.00164]
[1773186809514,0.07150313,69929.0,69914.0,0.00164]
[1773186809719,0.09630901,69928.0,69915.0,0.00144]
[1773186810510,0.09630901,69928.0,69913.0,0.00164]
[1773186811085,0.09630901,69928.0,69907.0,0.0002]
[1773186811086,0.09932326,69922.0,69897.0,0.06675039]
[1773186811283,0.07152154,69909.0,69898.0,0.00144]
[1773186811498,0.09932326,69908.0,69898.0,0.00144]
[1773186811642,0.09932326,69908.0,69892.0,0.09750304]
[1773186812578,0.09932326,69908.0,69892.0,0.09758841]
[1773186813359,0.09932326,69905.0,69892.0,0.09758841]
[1773186813793,0.00144,69904.0,69892.0,0.09758841]
[1773186814195,0.09932326,69905.0,69900.0,0.0002]
[1773186814430,0.09932326,69903.0,69900.0,0.0002]
[1773186815027,0.00144,69904.0,69900.0,0.0002]
[1773186815262,0.07152768,69903.0,69893.0,0.09365009]
[1773186815439,0.07152768,69903.0,69892.0,0.09758841]
[1773186816668,0.07252768,69903.0,69892.0,0.09758841]
[1773186817469,0.07152768,69903.0,69892.0,0.09758841]
[1773186818677,0.07252768,69903.0,69892.0,0.09758841]
[1773186819879,0.07252768,69903.0,69857.0,0.35102362]
[1773186819880,0.05453331,69902.0,69880.0,0.07171485]
[1773186820020,0.09932326,69901.0,69880.0,0.07182673]
[1773186820220,0.09932326,69901.0,69881.0,0.00144]
[1773186820667,0.09932326,69901.0,69880.0,0.07182673]
[1773186820917,0.09932326,69901.0,69892.0,0.0002]
[1773186821142,0.10032326,69901.0,69892.0,0.0002]
[1773186821319,0.10032326,69901.0,69886.0,0.00144]
[1773186821523,0.09932326,69901.0,69886.0,0.00144]
[1773186821671,0.07153075,69900.0,69885.0,0.0002]
[1773186821889,0.10076326,69899.0,69886.0,0.00144]
[1773186822095,0.05453331,69896.0,69880.0,0.09376197]
[1773186822294,0.00144,69899.0,69882.0,0.09365009]
[1773186822295,0.10076326,69899.0,69882.0,0.09365009]
[1773186822516,0.10076326,69899.0,69883.0,0.0004]
[1773186823331,0.10076326,69899.0,69884.0,0.00144]
[1773186823943,0.09932326,69897.0,69883.0,0.00144]
[1773186824472,0.00344,69899.0,69884.0,0.09365009]
[1773186824675,0.07153075,69900.0,69888.0,0.09365009]
[1773186825109,0.001,69899.0,69890.0,0.09365009]
[1773186825325,0.07153075,69900.0,69892.0,0.09365009]
[1773186825535,0.07152894,69902.0,69892.0,0.09365009]
[1773186825721,0.07151768,69913.0,69892.0,0.09365009]
[1773186825924,0.07151768,69913.0,69901.0,0.09365009]
[1773186826130,0.07177215,69914.0,69903.0,0.09365009]
[1773186827155,0.07177215,69914.0,69902.0,0.00144]
[1773186827360,0.17109541,69914.0,69902.0,0.00144]
[1773186827891,0.09562277,69913.0,69902.0,0.00144]
[1773186828701,0.09562277,69913.0,69897.0,0.09365009]
[1773186828702,0.07151848,69912.0,69897.0,0.09365009]
[1773186828909,0.09562277,69911.0,69898.0,0.00144]
[1773186829118,0.09562277,69911.0,69899.0,0.00144]
[1773186829429,0.00022001,69908.0,69899.0,0.00144]
[1773186829815,0.00022001,69908.0,69897.0,0.09376209]
[1773186830015,0.00022001,69908.0,69899.0,0.00144]
[1773186830638,0.07152359,69907.0,69897.0,0.000112]
[1773186830936,0.10134613,69906.0,69889.0,0.00144]
[1773186831228,0.10289805,69906.0,69889.0,0.09586033]
[1773186831434,0.10289805,69906.0,69890.0,0.00144]
[1773186831889,0.10289805,69906.0,69890.0,0.09730033]
[1773186832529,0.10289805,69906.0,69883.0,0.0002]
[1773186832858,0.10134613,69898.0,69883.0,0.16760848]
[1773186833034,0.10134613,69898.0,69884.0,0.09730033]
[1773186833237,0.07153178,69899.0,69884.0,0.09730033]
[1773186833840,0.07153178,69899.0,69885.0,0.00144]
[1773186834068,0.07153178,69899.0,69886.0,0.09586033]
[1773186835044,0.07153178,69899.0,69885.0,0.00144]
[1773186835045,0.10134613,69898.0,69885.0,0.00144]
[1773186835916,0.10134613,69898.0,69883.0,0.00164]
[1773186836087,0.10134613,69898.0,69883.0,0.00144]
[1773186836449,0.10134613,69898.0,69882.0,0.00144]
[1773186837003,0.10134613,69896.0,69878.0,0.09606033]
[1773186837187,0.10134613,69896.0,69878.0,0.0002]
[1773186837392,0.07153382,69897.0,69879.0,0.09586033]
[1773186837596,0.07153382,69897.0,69878.0,0.07175281]
[1773186837597,0.07153382,69897.0,69881.0,0.09586033]
[1773186837978,0.17287995,69897.0,69885.0,0.0002]
[1773186838175,0.001,69896.0,69885.0,0.0002]
[1773186838379,0.10134613,69895.0,69885.0,0.0002]
[1773186839278,0.07153689,69894.0,69885.0,0.0002]
[1773186839505,0.10134613,69893.0,69885.0,0.0002]
[1773186840258,0.10134613,69891.0,69876.0,0.00144]
[1773186840500,0.10134613,69889.0,69869.0,0.07156224]
[1773186840657,0.10134613,69889.0,69873.0,0.00144]
[1773186841066,0.10134613,69889.0,69867.0,0.09586033]
[1773186841067,0.05460623,69883.0,69867.0,0.09586033]
[1773186841266,0.05460623,69883.0,69865.0,0.00144]
[1773186841267,0.10134613,69875.0,69865.0,0.00144]
[1773186841468,0.10134613,69875.0,69856.0,0.00144]
[1773186841469,0.10134613,69874.0,69856.0,0.00144]
[1773186841671,0.10134613,69869.0,69856.0,0.00144]
[1773186841891,0.10134613,69869.0,69850.0,0.10726535]
[1773186842099,0.10134613,69869.0,69850.0,0.19980726]
[1773186842344,0.10134613,69869.0,69851.0,0.09320439]
[1773186842481,0.10134613,69869.0,69851.0,0.09464439]
[1773186843066,0.10134613,69869.0,69852.0,0.00144]
[1773186843500,0.10134613,69867.0,69852.0,0.07157991]
[1773186843734,0.10134613,69867.0,69853.0,0.00144]
[1773186844277,0.10134613,69867.0,69854.0,0.00144]
[1773186845627,0.07156556,69866.0,69855.0,0.00144]
[1773186846033,0.07156556,69866.0,69852.0,0.16494807]
[1773186846254,0.07156556,69866.0,69853.0,0.00144]
[1773186846710,0.07156556,69866.0,69852.0,0.16494807]
[1773186846711,0.07155737,69874.0,69854.0,0.09305212]
[1773186846950,0.07155737,69874.0,69861.0,0.09305212]
[1773186847489,0.07155737,69874.0,69861.0,0.09449212]
[1773186847831,0.07155737,69874.0,69861.0,0.1660627]
[1773186848182,0.07155737,69874.0,69861.0,0.16560809]
[1773186853167,0.07155737,69874.0,69861.0,0.16580809]
[1773186857518,0.07155737,69874.0,69862.0,0.08835686]
[1773186860978,0.07177738,69874.0,69862.0,0.08835686]
[1773186861796,0.09331511,69873.0,69861.0,0.00164]
[1773186862712,0.07155942,69872.0,69862.0,0.00144]
[1773186864720,0.09331511,69871.0,69862.0,0.00144]
[1773186867243,0.07155942,69873.0,69862.0,0.00144]
[1773186867441,0.00144,69884.0,69863.0,0.08356016]
[1773186867645,0.07174264,69882.0,69863.0,0.08356016]
[1773186868391,0.07177032,69881.0,69863.0,0.08356016]
[1773186868950,0.00022001,69881.0,69871.0,0.08313192]
[1773186869314,0.00022001,69881.0,69872.0,0.08457192]
[1773186869556,0.00625,69900.0,69872.0,0.08457192]
[1773186869734,0.09331511,69891.0,69874.0,0.08270427]
[1773186869929,0.09331511,69891.0,69873.0,0.07299839]
[1773186869930,0.07153894,69892.0,69876.0,0.08270427]
[1773186870514,0.09331511,69891.0,69876.0,0.08270427]
[1773186871134,0.00022001,69881.0,69876.0,0.08270427]
[1773186871368,0.00022001,69881.0,69877.0,0.1543092]
[1773186871880,0.00022001,69881.0,69878.0,0.0827549]
[1773186872356,0.00022001,69881.0,69877.0,0.0715543]
[1773186873777,0.00022001,69881.0,69878.0,0.08191831]
[1773186875310,0.00022001,69888.0,69878.0,0.08191831]
[1773186875513,0.00625,69900.0,69880.0,0.08109464]
[1773186875688,0.16522902,69899.0,69882.0,0.08187886]
[1773186875908,0.16666902,69899.0,69882.0,0.08187886]
[1773186876439,0.09331511,69898.0,69882.0,0.08187886]
[1773186877428,0.09331511,69898.0,69883.0,0.07154815]
[1773186877429,0.16484863,69898.0,69883.0,0.07154815]
[1773186877819,0.16484863,69898.0,69883.0,0.15261875]
[1773186878264,0.09331511,69898.0,69883.0,0.15261875]
[1773186878487,0.0003815,69899.0,69884.0,0.08066976]
[1773186878924,0.09331511,69898.0,69883.0,0.07154815]
[1773186879563,0.0003815,69899.0,69889.0,0.08027199]
[1773186879771,0.0003815,69899.0,69891.0,0.08027199]
[1773186881229,0.0003815,69899.0,69890.0,0.00144]
[1773186881428,0.0003815,69899.0,69890.0,0.08092553]
[1773186881658,0.0003815,69899.0,69891.0,0.07253996]
[1773186881927,0.0003815,69899.0,69891.0,0.0604733]
[1773186882327,0.0003815,69899.0,69891.0,0.0594733]
[1773186884170,0.0003815,69899.0,69891.0,0.0604733]
[1773186884676,0.0003815,69899.0,69891.0,0.0594733]
[1773186884869,0.0003815,69899.0,69891.0,0.0604733]
[1773186885078,0.0003815,69899.0,69891.0,0.0594733]
[1773186885451,0.0003815,69899.0,69891.0,0.0604733]
[1773186885652,3.15e-05,69899.0,69892.0,0.07802282]
[1773186886063,0.00025151,69899.0,69892.0,0.07802282]
[1773186886465,0.00025151,69899.0,69893.0,0.07153792]
[1773186886654,0.00025151,69899.0,69893.0,0.14918559]
[1773186888159,0.00025151,69899.0,69893.0,0.15018559]
[1773186888357,0.00025151,69899.0,69893.0,0.14918559]